Cogmind - Beta 14 @@@ ROGUE MODE // 2025.03.29 @ 15:32:53 Player: SirusTheMadDJ Result: Destroyed by KN-NEI(R) with Subdweller Laser Performance ------------- Evolutions (0) 0 Regions Visited (3) 600 Robots Destroyed (36) 180 Value Destroyed (681) 681 Prototype IDs (0) 0 Alien Tech Used (0) 0 Bonus (0) 0 TOTAL SCORE: 1461 Bonus ------- None Cogmind --------- Core Integrity 0/250 Matter 293/300 Energy 265/265 System Corruption 0% Temperature Cool (6) Movement Walking (190) Ox1 Location -10/Subcaves Parts ------- > --- POWER (1) -------- Improved Ion Engine > --- PROPULSION (2) --- Improved Aluminum Leg Improved Aluminum Leg > --- UTILITY (2) ------ Large Storage Unit Signal Interpreter > --- WEAPON (2) ------- Assault Rifle Improved Light Cannon > --- INVENTORY (15) --- Improved Ion Engine Improved Aluminum Leg Improved Aluminum Leg Improved Heat Sink Huge Storage Unit Weight Redist. System Sensor Array Assault Rifle Rocket Launcher Peak State ------------ > --- POWER ------------ Improved Ion Engine > --- PROPULSION ------- Improved Aluminum Leg Improved Aluminum Leg > --- UTILITY ---------- Large Storage Unit Signal Interpreter > --- WEAPON ----------- Improved Light Cannon Improved Light Cannon > --- INVENTORY -------- Ion Engine Improved Aluminum Leg Improved Aluminum Leg Weight Redist. System Sensor Array Assault Rifle Assault Rifle [Rating: 13] Favorites ----------- Power Improved Ion Engine Engine Improved Ion Engine Propulsion Improved Aluminum Leg Leg Improved Aluminum Leg Utility Large Storage Unit Storage Large Storage Unit Processor Signal Interpreter Weapon Improved Light Cannon Ballistic Gun Assault Rifle Ballistic Cannon Improved Light Cannon Build | -11 -10 -10 -10 ------- Run | Yrd Mat Min Sub Slots Evolved . | . . . . Power . | . . . . Propulsion . | . . . . Utility . | . . . . Weapon . | . . . . Parts Attached 21 | 6 13 . 2 Power 4 | 1 3 . . Engine 4 | 1 3 . . Core . | . . . . Reactor . | . . . . Propulsion 9 | 2 6 . 1 Treads . | . . . . Leg 9 | 2 6 . 1 Wheel . | . . . . Hover . | . . . . Flight . | . . . . Utility 3 | 1 2 . . Device . | . . . . Storage 2 | 1 1 . . Processor 1 | . 1 . . Hackware . | . . . . Protection . | . . . . Artifact . | . . . . Weapon 5 | 2 2 . 1 Energy Gun . | . . . . Energy Cannon . | . . . . Ballistic Gun 3 | 2 . . 1 Ballistic Cannon 2 | . 2 . . Launcher . | . . . . Special Weapon . | . . . . Impact Weapon . | . . . . Slashing Weapon . | . . . . Piercing Weapon . | . . . . Special Melee Weapon . | . . . . Unidentified Prototypes . | . . . . Parts Lost 1 | . . . 1 Power . | . . . . Propulsion . | . . . . Utility . | . . . . Weapon 1 | . . . 1 Highest Loss Streak 1 | . . . 1 To Critical Strikes . | . . . . Average Slot Usage (%) 98 | . 97 100 100 Engine 14 | . 14 14 14 Leg 28 | . 28 28 28 Storage 14 | . 14 14 14 Processor 12 | . 11 14 14 Ballistic Gun 1 | . 1 . 8 Ballistic Cannon 26 | . 26 28 20 Peak Build Rating 13 | 6 13 13 13 Average Rating 11 | 5 10 13 12 On Entrance 8 | . 6 13 13 Naked Turns . | . . . . Heaviest Build 35 | 14 35 35 35 Greatest Support 26 | 20 26 26 26 Greatest Overweight (x) 3 | 3 1 1 1 Average Overweight (x) . | . . 1 1 Largest Inventory Capacity 15 | 8 15 15 15 Average Capacity 14 | 7 14 15 15 Most Carried 10 | . 9 10 10 Average Carried 6 | . 5 9 9 Final Capacity 15 | 8 15 15 15 Final Carried 10 | . 8 10 9 Class Distribution -------------------- 88% | Mutant 11% | Scavenger-Mutant Dominant Class ---------------- Mutant | -10/Materials Mutant | -10/Mines Mutant | -10/Subcaves Resources | -11 -10 -10 -10 ----------- Run | Yrd Mat Min Sub Matter Collected 1156 | 290 568 231 67 Remotely . | . . . . Salvage Created 788 | 99 533 153 3 Parts 65 | 2 54 9 . Haulers Intercepted 2 | . 2 . . Recyclers Shooed 3 | . 3 . . Parts Field Recycled . | . . . . Retrieved Matter . | . . . . Parts Self-Destructed . | . . . . Prevented . | . . . . Kills | -11 -10 -10 -10 ------- Run | Yrd Mat Min Sub Combat Hostiles Destroyed 25 | . 17 7 1 Guns 1 | . 1 . . Cannons 24 | . 16 7 1 Classes Destroyed 8 | 1 5 1 1 Hauler 2 | . 2 . . Recycler 4 | 1 3 . . Operator 3 | . 3 . . Watcher 3 | . 3 . . Swarmer 12 | . 12 . . Grunt 11 | . 5 6 . Subdweller 1 | . . . 1 Assembled 1 | . . 1 . Best Kill Streak 4 | 1 4 2 1 Combat Bots Only 3 | . 3 2 1 Max Kills in Single Turn 2 | 1 2 1 1 Gunslinging . | . . . . Exploded . | . . . . Melee . | . . . . Uniques/NPCs Destroyed . | . . . . Combat | -11 -10 -10 -10 -------- Run | Yrd Mat Min Sub Hostile Shots Fired 104 | . 62 24 18 Missed 34 | . 15 13 6 Damage Taken 859 | . 441 129 289 Core 258 | . 115 23 120 Absorbed by Shields . | . . . . Core Remaining (%) 100 | 100 . . . Volleys Fired 99 | 5 57 30 7 Largest 2 | 2 2 2 2 Hottest 78 | 40 78 78 78 Shots Fired 197 | 10 114 60 13 Gun 30 | 10 18 . 2 Cannon 167 | . 96 60 11 Launcher . | . . . . Special . | . . . . Kinetic 197 | 10 114 60 13 Thermal . | . . . . Explosive . | . . . . Electromagnetic . | . . . . Robot Hit Streak 5 | 3 5 3 4 Robot Miss Streak 5 | 3 5 4 2 Penetration Max . | . . . . Secondary Targets . | . . . . Shots Hit Robots 85 | 5 56 17 7 Core Hits 41 | 2 29 9 1 Critical Kills . | . . . . Critical Parts Destroyed . | . . . . Critical Strikes 6 | . 4 . 2 Blast 6 | . 4 . 2 Melee Attacks . | . . . . Impact . | . . . . Slashing . | . . . . Piercing . | . . . . Sneak Attacks . | . . . . Combat Hostiles . | . . . . Follow-up Attacks . | . . . . Damage Inflicted 1729 | 62 1165 361 141 Guns 192 | 62 130 . . Cannons 1537 | . 1035 361 141 Explosions . | . . . . Melee . | . . . . Ramming . | . . . . Kinetic 1729 | 62 1165 361 141 Thermal . | . . . . Explosive . | . . . . Electromagnetic . | . . . . Impact . | . . . . Slashing . | . . . . Piercing . | . . . . Highest Corruption . | . . . . Average Corruption . | . . . . Corruption Purged . | . . . . Corruption Blocked . | . . . . Overload Shots . | . . . . Overflow Damage 33 | . 33 . . Projectiles 33 | . 33 . . Explosions . | . . . . Melee . | . . . . Knockbacks 16 | . 9 7 . Impact . | . . . . Kinetic 13 | . 8 5 . Secondary 3 | . 1 2 . Self-Inflicted Damage . | . . . . Shots . | . . . . Rammed . | . . . . Targets Rammed . | . . . . Kicked . | . . . . Crushed . | . . . . Highest Temperature 213 | . 126 213 . Average Temperature 49 | . 36 66 . Received Heat Transfer 168 | . 30 90 48 Siege Activations . | . . . . Robots Corrupted . | . . . . Combat Hostiles . | . . . . Parts Fried 1 | . 1 . . Impact Corruptions 1 | . 1 . . Robots Melted . | . . . . Combat Hostiles . | . . . . Parts Melted . | . . . . Heat Transferred . | . . . . Parts Sabotaged . | . . . . Parts Stolen . | . . . . Parts Stripped . | . . . . Power Chain Reactions . | . . . . Alert | -11 -10 -10 -10 ------- Run | Yrd Mat Min Sub Peak Influence 282 | 5 282 100 . Initial 10 | . 3 10 . Average 90 | 1 132 32 . Maximum Alert Level 1 | . 1 . . Low Security (%) 83 | 100 72 100 . Level 1 16 | . 27 . . Level 2 . | . . . . Level 3 . | . . . . Level 4 . | . . . . Level 5 . | . . . . High Security . | . . . . Max Security . | . . . . Squads Dispatched 3 | . 3 . . Investigation . | . . . . Extermination . | . . . . Reinforcement 3 | . 3 . . Assault . | . . . . Garrison . | . . . . Intercept . | . . . . Searches Triggered . | . . . . Construction Impeded . | . . . . Haulers Reinforced . | . . . . Active Scanning Responses . | . . . . Cargo Convoy Interrupts . | . . . . Stealth | -11 -10 -10 -10 --------- Run | Yrd Mat Min Sub Distress Signals 2 | . 2 . . Communications Jammed . | . . . . Distress Signals . | . . . . Times Spotted 36 | . 26 7 3 Peak Tracking Total 5 | . 5 2 2 Tactical Retreats . | . . . . Traps | -11 -10 -10 -10 ------- Run | Yrd Mat Min Sub Traps Triggered 3 | . 2 . 1 Indirectly . | . . . . Trap Hack Attempts . | . . . . Triggered . | . . . . Disarmed . | . . . . Reprogrammed . | . . . . Reused . | . . . . Traps Extracted . | . . . . Installed . | . . . . Triggered . | . . . . Machines | -11 -10 -10 -10 ---------- Run | Yrd Mat Min Sub Machines Disabled 1 | . 1 . . Max in Single Turn 1 | . 1 . . Machines Repaired . | . . . . Machines Dismantled . | . . . . Machines Sabotaged . | . . . . Overloaded Fab Kills . | . . . . Hacking | -11 -10 -10 -10 --------- Run | Yrd Mat Min Sub Machines Accessed . | . . . . Terminals . | . . . . Fabricators . | . . . . Repair Stations . | . . . . Recycling Units . | . . . . Scanalyzers . | . . . . Garrison Access . | . . . . Total Hacks . | . . . . Successful . | . . . . Failed . | . . . . Catastrophic . | . . . . Database Lockouts . | . . . . Manual . | . . . . Terminals . | . . . . Fabricators . | . . . . Repair Stations . | . . . . Recycling Units . | . . . . Scanalyzers . | . . . . Garrison Access . | . . . . Terminal Hacks . | . . . . Fabricator Hacks . | . . . . Repair Station Hacks . | . . . . Recycling Unit Hacks . | . . . . Scanalyzer . | . . . . Garrison Access Hacks . | . . . . Unauthorized Hacks . | . . . . Terminals . | . . . . Fabricators . | . . . . Repair Stations . | . . . . Recycling Units . | . . . . Scanalyzers . | . . . . Garrison Access . | . . . . Data Cores Recovered . | . . . . Used . | . . . . Hacking Detections . | . . . . Full Trace Events . | . . . . Feedback Events . | . . . . Feedback Blocked . | . . . . Robot Schematics Acquired . | . . . . Robots Built . | . . . . Authchips . | . . . . Time . | . . . . Total Robot Build Rating . | . . . . Part Schematics Acquired . | . . . . Parts Built . | . . . . Authchips . | . . . . Time . | . . . . Total Part Build Rating . | . . . . Parts Repaired . | . . . . Time . | . . . . Parts Recycled . | . . . . Recycled Matter . | . . . . Retrieved Matter . | . . . . Retrieved Components . | . . . . Parts Scanalyzed . | . . . . Part Schematics Acquired . | . . . . Parts Damaged . | . . . . Bothacking | -11 -10 -10 -10 ------------ Run | Yrd Mat Min Sub Used RIF Installer . | . . . . Robots Hacked . | . . . . Non-combat . | . . . . Combat . | . . . . Robot Hacks Applied . | . . . . Relay Couplers Released . | . . . . Fabnet Peak Effective % . | . . . . Robots Rewired . | . . . . Allies Hacked . | . . . . Hacks Repelled . | . . . . Allies | -11 -10 -10 -10 -------- Run | Yrd Mat Min Sub Total Allies . | . . . . Largest Group . | . . . . Highest-Rated Group . | . . . . Highest-Rated Ally . | . . . . Total Orders . | . . . . Ally Attacks . | . . . . Total Damage . | . . . . Kills . | . . . . Allies Corrupted . | . . . . Allies Melted . | . . . . Intel | -11 -10 -10 -10 ------- Run | Yrd Mat Min Sub Robot Analysis Total . | . . . . Derelict Logs Recovered 4 | . . 2 2 Drone Launches . | . . . . Drone Recoveries . | . . . . Exploration | -11 -10 -10 -10 ------------- Run | Yrd Mat Min Sub Turns Passed 3342 | 134 1845 1154 209 Spaces Moved 1571 | 86 903 484 98 Core 9 | 9 . . . Treads . | . . . . Legs 1562 | 77 903 484 98 Wheels . | . . . . Hover . | . . . . Flight . | . . . . Fastest Speed 50 | 50 120 190 190 Average Speed 180 | 120 180 190 190 Slowest Speed 200 | 200 190 190 190 Overloaded Moves . | . . . . Propulsion Burnouts . | . . . . Robots Hopped . | . . . . Cave-ins Triggered . | . . . . Exploration Rate (%) 47 | 5 98 76 11 Regions Visited 3 Branch Regions 2 Pre-discovered Areas 1 | . . . 1 Known Exits Taken 2 | . 1 1 . Unknown Exits Taken 1 | 1 . . . Scrap Searched 1 | . . 1 . Spaces Dug . | . . . . Terrain Destroyed 11 | . 4 7 . Melee . | . . . . Projectile 11 | . 4 7 . AOE . | . . . . Terrain Rammed . | . . . . Walls Destroyed . | . . . . Machines Disabled . | . . . . Actions | -11 -10 -10 -10 --------- Run | Yrd Mat Min Sub Total 1875 | 103 1006 659 107 Wait 162 | 7 11 144 . Move 1568 | 85 902 483 98 Hop . | . . . . Pick Up 13 | . 11 2 . Fast Attach 9 | 6 3 . . Attach 1 | . . . 1 Detach . | . . . . Swap 11 | . 10 . 1 Drop 12 | . 12 . . Fire 99 | 5 57 30 7 Melee . | . . . . Ram . | . . . . Kick . | . . . . Crush . | . . . . Escape Stasis . | . . . . Rewire . | . . . . Trap . | . . . . Miscellaneous . | . . . . Route ------- -11/Scrapyard -10/Materials (discovered 5 exits: *Mat x3 / *Min / *Sub) -10/Mines (discovered 3 exits: *Mat x2 / *Sub) -10/Subcaves (discovered 2 exits: *Mat / Rec) History --------- Turn | Location | Event 19 | -11/Scrapyard | Discovered new exit (range 14) 135 | -11/Scrapyard | Entered Materials 309 | -10/Materials | Build established: Mutant 309 | -10/Materials | Discovered new exit (range 12) 404 | -10/Materials | Discovered new exit (range 10) 868 | -10/Materials | Discovered new exit (range 14) 925 | -10/Materials | Identified exit to Materials 1137 | -10/Materials | Build established: Scavenger-Mutant 1453 | -10/Materials | Discovered exit to Materials (range 11) 1503 | -10/Materials | Build established: Mutant 1928 | -10/Materials | Discovered new exit (range 8) 1942 | -10/Materials | Identified exit to Subcaves 1974 | -10/Materials | Identified exit to Mines 1980 | -10/Materials | Entered Mines 2037 | -10/Mines | Received a Rocket Launcher from a helpful Derelict 2037 | -10/Mines | Discovered exit to Materials (range 7) 2301 | -10/Mines | Excavation squad dispatched 2301 | -10/Mines | A large section of the Mines collapsed 2489 | -10/Mines | Core integrity fell below 50% 2570 | -10/Mines | Discovered exit to Subcaves (range 8) 3134 | -10/Mines | Entered Subcaves 3135 | -10/Subcaves | Identified exit to Recycling 3138 | -10/Subcaves | Learned Materials terminal intel 3153 | -10/Subcaves | Learned location of Storage (-9) 3264 | -10/Subcaves | Discovered new exit (range 14) 3285 | -10/Subcaves | Identified exit to Materials 3334 | -10/Subcaves | Core integrity fell below 20% 3343 | -10/Subcaves | Destroyed by KN-NEI(R) with Subdweller Laser Last Messages --------------- Data stored: Materials terminal intel. Acquired derelict log, extracted data. World map updated: -9/Storage. 2M-XSK(R) Sub. Optics blasted off. 2M-XSK(R) Sub. Power Source blasted off. Subatomizers dissect the Sub. Optics. Imp. Light Cannon destroyed. 2M-XSK(R) destroyed. Subatomizers dissect the Sub. Optics. Acquired 3 matter. Acquired 14 matter. Acquired 1 matter. Subatomizers dissect the Sub. Optics. EXIT=FOUND Subatomizers dissect the Sub. Optics. EXIT=IDENTIFIED: MATERIALS Acquired 49 matter. Triggered Shrapnel Trap. An expanding cloud of shrapnel blasts out in all directions. Map ----- +----------------------------------------------------+ | ?????????????????????????????????????????????????? | | ?????????????????????????????????????????????????? | | ????????????????????????????>????????????????????? | | ?????????????????????????????????????????????????? | | ?????????????????????????????????????????????????? | | ?????????????????????????????????????????????????? | | ?????????????????????????????????????????????????? | | ?????????????????????????????????????????????????? | | ????????????????????????????????????????????????? | | ##????????????????????????? ?????????????????????? | | ?????????????????????????? #??????????????????? | | ?????????????????????????? #??????????????????? | | ?????????????????????????? #??????????????????? | | ???????????#??????????????? #??????????????????? | | ????????#### ?????????????? #??????????????????? | | ???????? " ?????????????? ##?????????????????? | | ???????? "" "??????????#### #?????????????????? | | ?????????#" #?????????# #???????#??????????? | | ?????????#" " ????????## #???#### ##?????????? | | ?????????##" #??????## #???# ###???????? | | ?????????# ##????# #???? #???????? | | ?????????? ###### ##?? #????????? | | #????????????# ## ## ### #?????????? | | ####?????????# ###???????? | | ##????????## #???????? | | ###??????## ## ### #@ ?????? | | ##?????# ## ##### ?????? | | # #????### #?## ##????????? | | #### ####?# ##?# ;## ## #?????????? | | ???# ### #### ##????????????????? | | ?### ## % # #????????????????? | | # # #### ???????????????? | | ## # ### #???# # ?????????????? | | ## < ####?# ?? ##?##????????????? | | ## ## ##???? # #??#????????????????? | | ###### #????## # ?? ???????????????????? | | ?????####????? ? ??????????????????????? | | ### ????????????##RR? ??????????????????????? | | ##??# #?????????????# ? ??????????????????????? | | ???? ##?????????????## ? ??????????????????????? | | ????####???????????????##? ??????????????????????? | | ??????????????????????????#??????????????????????? | | ?????????????????????????????????????????????????? | | ?????????????????????????????????????????????????? | | ?????????????????????????????????????????????????? | | ?????????????????????????????????????????????????? | | ?????????????????????????????????????????????????? | | ?????????????????????????????????????????????????? | | ?????????????????????????????????????????????????? | | ?????????????????????????????????????????????????? | +----------------------------------------------------+ Best States ------------- Heat Dissipation 25 Energy Generation 12 Energy Capacity 265 Matter Stores 300 Matter Capacity 300 Sight Range 16 Terrain Scan Density 10 Evasion (%) 55 Item Schematics ----------------- None Robot Schematics ------------------ None Fabricated ------------ Nothing Alien Tech Used ----------------- None Achievements -------------- None Challenges ------------ None Game ------ Seed SupercompositeScanMaul Manual? 0 Play Time 00:17:34 Cumulative 10.4 hours Start 2025.03.29 @ 15:16:06 End 2025.03.29 @ 15:32:53 Sessions 1 Manual Loads 0 Difficulty Rogue Special Mode None Game No. 23 Rogue 23 Adventurer 0 Explorer 0 Win Type - Total 0 Types 0/0/0/0/0/0/0/0/0 Lore% 4 Gallery% 15 Achievement% 15 Wizard Run 0 Options --------- Layout 1 ASCII 0 Keyboard 0 Movement Mouse Keybinds 0 Fullscreen 1 Font 24/Smallcaps Map View 50x35 Zoom Use 0% Tactical HUD 0 Map Filters NONE Filters NONE Steam 1 RUN: 497d4e9b-3bf2-4628-968b-c44202d370fb